fUSD/lending_fUSD_20260503
["ID","MTS","AMOUNT","RATE_DAILY","PERIOD"]
[421510041,1777786243000,-439643.45600008,0.00015,2]
[421510044,1777786243000,-8607.32345323,0.0001565,2]
[421510043,1777786243000,-372.03240618,0.0001555,2]
[421510051,1777786243000,-250.0,0.000165,2]
[421510053,1777786243000,-2500.0,0.000165,2]
[421510061,1777786243000,-4339.8642,0.00017345,2]
[421510057,1777786243000,-2500.0,0.00016765,2]
[421510046,1777786243000,-250.0,0.0001575,2]
[421510055,1777786243000,-2500.0,0.00016765,2]
[421510092,1777786243000,-152.0,0.00018086,7]
[421510059,1777786243000,-409.30942645,0.00016984,2]
[421510062,1777786243000,-85541.918,0.00017445,2]
[421510071,1777786243000,-481.48550137,0.00017544,2]
[421510069,1777786243000,-187.33740191,0.00017544,2]
[421510064,1777786243000,-2500.0,0.00017445,2]
[421510066,1777786243000,-12023.83341468,0.0001747,2]
[421510072,1777786243000,-500.0,0.00017544,2]
[421510074,1777786243000,-500.0,0.00017544,2]
[421510076,1777786243000,-162.602005,0.00017544,2]
[421510080,1777786243000,-792.7725364,0.00017644,2]
[421510078,1777786243000,-6146.5812338,0.00017644,2]
[421510050,1777786243000,-2500.0,0.000165,2]
[421510107,1777786243000,-355.58610813,0.00021434,2]
[421510083,1777786243000,-151.0,0.00017744,2]
[421510109,1777786243000,-8607.32345316,0.00021548,2]
[421510133,1777786243000,-8607.32345316,0.00030396,2]
[421510135,1777786243000,-372.03240615,0.00030774,2]
[421510136,1777786243000,-409.30942638,0.00030988,2]
[421510139,1777786243000,-158.09851426,0.000316,2]
[421510138,1777786243000,-158.09851428,0.000316,2]
[421510137,1777786243000,-150.0,0.00031382,30]
[421510140,1777786243000,-158.09851426,0.000316,2]
[421510142,1777786243000,-174.99,0.00032493,2]
[421510144,1777786243000,-8607.32345316,0.00033345,2]
[421510147,1777786243000,-176.16,0.000334,10]
[421510134,1777786243000,-509.0,0.00030441,5]
[421510145,1777786243000,-253.68,0.000334,10]
[421510146,1777786243000,-211.4,0.000334,10]
[421510153,1777786243000,-2000.0,0.0003346,43]
[421510150,1777786243000,-2000.0,0.0003343,42]
[421510148,1777786243000,-2000.0,0.000334,42]
[421510149,1777786243000,-2000.0,0.0003341,42]
[421510143,1777786243000,-6146.5812338,0.00032935,2]
[421510151,1777786243000,-2000.0,0.0003344,43]
[421510155,1777786243000,-409.30942638,0.00033789,2]
[421510156,1777786243000,-150.0,0.00034151,30]
[421510157,1777786243000,-284.46664037,0.00034222,7]
[421510152,1777786243000,-2000.0,0.0003345,43]
[421510141,1777786243000,-226.0,0.00032,14]
[421510108,1777786243000,-1152.0,0.0002152,2]
[421510132,1777786243000,-1007.48,0.00030137,2]
[421510118,1777786243000,-6146.5812338,0.0002529,2]
[421510110,1777786243000,-150.0,0.000224,30]
[421510111,1777786243000,-409.30942638,0.00022586,2]
[421510112,1777786243000,-372.03240615,0.00023162,2]
[421510116,1777786243000,-272.56691952,0.0002463,2]
[421510117,1777786243000,-150.0,0.000248,30]
[421510115,1777786243000,-8607.32345316,0.00024497,2]
[421510114,1777786243000,-501.0,0.00023973,2]
[421510113,1777786243000,-1613.0,0.00023552,2]
[421510119,1777786243000,-409.30942638,0.00025387,2]
[421510121,1777786243000,-415.0,0.00026489,10]
[421510131,1777786243000,-150.0,0.000296,30]
[421510124,1777786243000,-509.0,0.00027137,2]
[421510129,1777786243000,-409.30942638,0.00028188,2]
[421510130,1777786243000,-5000.0,0.00028364,2]
[421510120,1777786243000,-390.0,0.00025777,2]
[421510154,1777786243000,-509.0,0.00033745,9]
[421510126,1777786243000,-150.0,0.00027397,2]
[421510127,1777786243000,-249.12827399,0.00027397,2]
[421510123,1777786243000,-372.03240615,0.00026968,2]
[421510122,1777786243000,-727.0,0.00026489,10]
[421510125,1777786243000,-150.0,0.000272,30]
[421510128,1777786243000,-8607.32345316,0.00027446,2]
[421510170,1777786244000,-409.30942638,0.0003659,2]
[421510175,1777786244000,-159.09718591,0.00038047,120]
[421510168,1777786244000,-151.0,0.00036101,2]
[421510163,1777786244000,-500.0,0.00034688,10]
[421510162,1777786244000,-520.79427839,0.00034688,10]
[421510160,1777786244000,-200.0,0.00034688,10]
[421510161,1777786244000,-162.23694669,0.00034688,10]
[421510165,1777786244000,-1593.289,0.00034712,39]
[421510164,1777786244000,-517.43341227,0.00034688,10]
[421510167,1777786244000,-1280.88388878,0.00036101,2]
[421510166,1777786244000,-5346.4548469,0.00035463,2]
[421510185,1777786244000,-150.0,0.00038047,7]
[421510158,1777786244000,-6370.1065672,0.00034398,2]
[421510169,1777786244000,-8607.32345316,0.00036294,2]
[421510176,1777786244000,-172.8634174,0.00038047,7]
[421510159,1777786244000,-372.03240615,0.0003458,2]
[421510179,1777786244000,-150.0,0.00038047,7]
[421510194,1777786244000,-290.57360613,0.000387,2]
[421510192,1777786244000,-500.0,0.00038698,120]
[421510191,1777786244000,-150.0,0.0003861,7]
[421510188,1777786244000,-500.0,0.00038219,7]
[421510190,1777786244000,-372.03240615,0.00038386,2]
[421510186,1777786244000,-500.0,0.00038219,7]
[421510193,1777786244000,-392090.28264213,0.000387,2]
[421510181,1777786244000,-150.0,0.00038047,7]
[421510189,1777786244000,-150.0,0.00038328,7]
[421510183,1777786244000,-150.0,0.00038047,7]
[421510172,1777786244000,-509.0,0.00037049,12]
[421510173,1777786244000,-188.30264233,0.000372,120]
[421510171,1777786244000,-150.0,0.0003692,30]
[421510178,1777786244000,-150.0,0.00038047,7]
[421510174,1777786244000,-442.0,0.00038,90]
[421510210,1777786245000,-646.0500007,0.000387,2]
[421510209,1777786245000,-867.61617582,0.000387,2]
[421510206,1777786245000,-880.85,0.000334,10]
[421510207,1777786245000,-6175.18232277,0.000387,2]
[421510208,1777786245000,-2000.0,0.000387,2]
[421510220,1777786974000,150.0,0.00010782,30]
[421510219,1777786974000,150.0,9.739e-05,30]
[421510224,1777787358000,-250.0,0.00010627,2]
[421510221,1777787358000,-187.79948727,0.00010597,2]
[421510223,1777787358000,-3302.27339619,0.0001061,2]
[421510225,1777787358000,-185.71653242,0.00010636,2]
[421510222,1777787358000,-250.0,0.00010604,2]
[421510226,1777787358000,-300.0,0.00010697,2]
[421510228,1777787358000,-300.0,0.00010699,2]
[421510230,1777787358000,-3874.21058412,0.000107,2]
[421510229,1777787358000,-150.0,0.00010699,2]
[421510231,1777787358000,-1241.61175615,0.000107,2]
[421510227,1777787358000,-1200.0,0.00010697,2]
[421510232,1777787359000,-10000.0,0.000107,2]
[421510233,1777787360000,-10000.0,0.000107,2]
[421510235,1777787361000,-184.0,0.000107,2]
[421510234,1777787361000,-7542.35257711,0.000107,2]
[421510254,1777787431000,-529.0,0.00012928,2]
[421510252,1777787431000,-1680.0,0.00012821,2]
[421510251,1777787431000,-250.0,0.0001199,2]
[421510250,1777787431000,-420.0,0.00011761,2]
[421510249,1777787431000,-255.0,0.00011737,2]
[421510245,1777787431000,-5000.0,0.00011657,2]
[421510246,1777787431000,-502.86529123,0.00011657,2]
[421510243,1777787431000,-191.05678006,0.00011656,2]
[421510247,1777787431000,-250.0,0.00011657,2]
[421510244,1777787431000,-108.94321994,0.00011656,2]
[421510242,1777787431000,-1200.0,0.00011656,2]
[421510241,1777787431000,-250.0,0.00011278,2]
[421510240,1777787431000,-75.98178971,0.000109,2]
[421510239,1777787431000,-277.70821029,0.000109,2]
[421510256,1777787431000,-1680.0,0.00014103,2]
[421510248,1777787431000,-193.0,0.00011686,2]
[421510253,1777787431000,-150.0,0.00012871,2]
[421510261,1777787431000,-223.06,0.00017115,2]
[421510259,1777787431000,-158.88,0.00016757,2]
[421510255,1777787431000,-250.0,0.00013,2]
[421510276,1777787431000,-6299.15287205,0.00019339,2]
[421510266,1777787431000,-254.53,0.00019339,2]
[421510267,1777787431000,-150.99,0.00019339,2]
[421510272,1777787431000,-7629.13,0.00019339,2]
[421510270,1777787431000,-3700.67,0.00019339,2]
[421510273,1777787431000,-18700.83712795,0.00019339,2]
[421510264,1777787431000,-500.0,0.00017544,2]
[421510269,1777787431000,-9999.99,0.00019339,2]
[421510268,1777787431000,-4632.52,0.00019339,2]
[421510265,1777787431000,-500.0,0.000192,7]
[421510263,1777787431000,-500.0,0.00017444,2]
[421510262,1777787431000,-215.09,0.0001726,2]
[421510258,1777787431000,-500.0,0.00014999,2]
[421510271,1777787431000,-2122.29,0.00019339,2]
[421510257,1777787431000,-10356.73044011,0.00014771,2]
[421510260,1777787431000,-187.79948727,0.00017015,2]
[421510336,1777787432000,-4828.7359901,0.00025601,2]
[421510338,1777787432000,-1500.0,0.000271,7]
[421510333,1777787432000,-434.6279574,0.00025601,2]
[421510337,1777787432000,-1346.19218799,0.00026795,2]
[421510330,1777787432000,-2879.52674026,0.00024969,2]
[421510328,1777787432000,-389.44944031,0.00024899,2]
[421510321,1777787432000,-266.12947534,0.00024899,2]
[421510323,1777787432000,-500.0,0.00024899,2]
[421510332,1777787432000,-158.88,0.00025135,2]
[421510331,1777787432000,-110517.07765483,0.00025,7]
[421510341,1777787432000,-880.85,0.00027397,10]
[421510345,1777787432000,-2879.52674026,0.00029894,2]
[421510334,1777787432000,-3009.5170469,0.00025601,2]
[421510335,1777787432000,-332.6586277,0.00025601,2]
[421510339,1777787432000,-509.0,0.00027137,2]
[421510342,1777787432000,-2879.52674026,0.00027432,2]
[421510344,1777787432000,-1676.21456802,0.00029822,2]
[421510343,1777787432000,-1346.19218799,0.00028721,2]
[421510346,1777787432000,-1346.19218799,0.00030648,2]
[421510325,1777787432000,-500.0,0.00024899,2]
[421510352,1777787432000,-152.0,0.00031158,30]
[421510350,1777787432000,-332.6586277,0.00031155,2]
[421510347,1777787432000,-2000.0,0.000311,7]
[421510349,1777787432000,-3009.5170469,0.00031155,2]
[421510340,1777787432000,-1676.21456802,0.00027346,2]
[421510320,1777787432000,-277.71949634,0.00024899,2]
[421510316,1777787432000,-2500.0,0.000248,2]
[421510327,1777787432000,-500.0,0.00024899,2]
[421510355,1777787432000,-152.0,0.00031189,30]
[421510278,1777787432000,-9999.99,0.00019339,2]
[421510285,1777787432000,-158.88,0.0001955,2]
[421510281,1777787432000,-5466.7,0.00019339,2]
[421510289,1777787432000,-2879.52674026,0.00020045,2]
[421510291,1777787432000,-500.0,0.00020143,2]
[421510283,1777787432000,-240.51,0.00019348,2]
[421510287,1777787432000,-9106.20596428,0.00019802,2]
[421510297,1777787432000,-500.0,0.00020143,2]
[421510293,1777787432000,-500.0,0.00020143,2]
[421510295,1777787432000,-500.0,0.00020143,2]
[421510301,1777787432000,-500.0,0.00020143,2]
[421510319,1777787432000,-248.56615761,0.00024875,2]
[421510304,1777787432000,-500.0,0.00020143,2]
[421510299,1777787432000,-500.0,0.00020143,2]
[421510308,1777787432000,-162.45035992,0.00021312,2]
[421510310,1777787432000,-5000.0,0.00021918,2]
[421510315,1777787432000,-1000.0,0.000232,7]
[421510312,1777787432000,-158.88,0.00022342,2]
[421510314,1777787432000,-2879.52674026,0.00022507,2]
[421510318,1777787432000,-1676.21456807,0.00024869,2]
[421510317,1777787432000,-1346.19218801,0.00024869,2]
[421510329,1777787432000,-335773.5686,0.000249,2]
[421510324,1777787432000,-500.0,0.00024899,2]
[421510326,1777787432000,-213.65641672,0.00024899,2]
[421510322,1777787432000,-500.0,0.00024899,2]
[421510306,1777787432000,-500.0,0.00020144,2]
[421510354,1777787432000,-152.0,0.00031158,30]
[421510362,1777787432000,-1346.19218799,0.00032574,2]
[421510348,1777787432000,-434.6279574,0.00031155,2]
[421510386,1777787432000,-150.0,0.00037948,7]
[421510385,1777787432000,-150.0,0.00037948,7]
[421510389,1777787432000,-150.0,0.00037948,7]
[421510387,1777787432000,-150.0,0.00037948,7]
[421510388,1777787432000,-150.0,0.00037948,7]
[421510393,1777787432000,-1170.70395,0.0003831,100]
[421510391,1777787432000,-857.0,0.00038047,120]
[421510392,1777787432000,-150.0,0.00038211,7]
[421510390,1777787432000,-500.0,0.00038,5]
[421510395,1777787432000,-1170.70395,0.0003831,100]
[421510396,1777787432000,-1170.70395,0.0003831,100]
[421510397,1777787432000,-1346.19218799,0.00038353,2]
[421510383,1777787432000,-150.34151502,0.00037948,7]
[421510400,1777787432000,-500.0,0.00038499,7]
[421510401,1777787432000,-12499.999999,0.000385,120]
[421510398,1777787432000,-150.0,0.00038475,7]
[421510403,1777787432000,-200.0,0.00038609,7]
[421510402,1777787432000,-1077.4366348,0.00038555,2]
[421510406,1777787432000,-150.0,0.00038651,120]
[421510405,1777787432000,-500.0,0.00038609,7]
[421510407,1777787432000,-150.0,0.00038651,7]
[421510404,1777787432000,-500.0,0.00038609,7]
[421510408,1777787432000,-151.0,0.0003868,2]
[421510409,1777787432000,-238003.26456075,0.000387,2]
[421510410,1777787432000,-2507.7401103,0.000387,2]
[421510351,1777787432000,-152.0,0.00031158,30]
[421510399,1777787432000,-150.0,0.00038475,7]
[421510394,1777787432000,-1170.70395,0.0003831,100]
[421510365,1777787432000,-1676.21456802,0.00034775,2]
[421510382,1777787432000,-150.0,0.00037948,7]
[421510356,1777787432000,-152.0,0.00031189,30]
[421510357,1777787432000,-152.0,0.00031189,30]
[421510360,1777787432000,-1676.21456802,0.00032299,2]
[421510358,1777787432000,-152.0,0.00031189,30]
[421510361,1777787432000,-2879.52674026,0.00032356,2]
[421510363,1777787432000,-1346.19218799,0.000345,2]
[421510364,1777787432000,-2251.4,0.00034712,39]
[421510366,1777787432000,-2879.52674026,0.00034818,2]
[421510359,1777787432000,-509.0,0.00031542,6]
[421510384,1777787432000,-150.0,0.00037948,7]
[421510367,1777787432000,-200.0,0.00034931,2]
[421510370,1777787432000,-1346.19218799,0.00036426,2]
[421510368,1777787432000,-2000.0,0.000351,7]
[421510373,1777787432000,-332.6586277,0.00036709,2]
[421510369,1777787432000,-509.0,0.00035947,11]
[421510379,1777787432000,-152.63196873,0.00037948,7]
[421510375,1777787432000,-1676.21456802,0.00037252,2]
[421510378,1777787432000,-150.0,0.00037948,7]
[421510371,1777787432000,-434.6279574,0.00036709,2]
[421510376,1777787432000,-2879.52674026,0.00037281,2]
[421510353,1777787432000,-152.0,0.00031158,30]
[421510377,1777787432000,-150.0,0.00037948,120]
[421510381,1777787432000,-150.0,0.00037948,7]
[421510374,1777787432000,-159.52,0.00036953,7]
[421510372,1777787432000,-3009.5170469,0.00036709,2]
[421510380,1777787432000,-151.31290263,0.00037948,7]
[421510422,1777787437000,-500.0,0.00020143,2]
[421510429,1777787437000,-500.0,0.00020143,2]
[421510427,1777787437000,-500.0,0.00020143,2]
[421510431,1777787437000,-500.0,0.00020143,2]
[421510423,1777787437000,-140.99788116,0.00020143,2]
[421510433,1777787437000,-500.0,0.00020143,2]
[421510421,1777787437000,-500.0,0.00020143,2]
[421510428,1777787437000,-500.0,0.00020143,2]
[421510417,1777787437000,-500.0,0.00020143,2]
[421510419,1777787437000,-422.93732463,0.00020143,2]
[421510420,1777787437000,-77.06267537,0.00020143,2]
[421510426,1777787437000,-500.0,0.00020143,2]
[421510418,1777787437000,-500.0,0.00020143,2]
[421510424,1777787437000,-359.00211884,0.00020143,2]
[421510430,1777787437000,-500.0,0.00020143,2]
[421510435,1777787437000,-500.0,0.00020143,2]
[421510436,1777787437000,-500.0,0.00020143,2]
[421510442,1777787437000,-500.0,0.00020143,2]
[421510440,1777787437000,-500.0,0.00020143,2]
[421510432,1777787437000,-500.0,0.00020143,2]
[421510443,1777787437000,-500.0,0.00020143,2]
[421510439,1777787437000,-500.0,0.00020143,2]
[421510441,1777787437000,-500.0,0.00020143,2]
[421510434,1777787437000,-500.0,0.00020143,2]
[421510437,1777787437000,-500.0,0.00020143,2]
[421510445,1777787437000,-500.0,0.00020143,2]
[421510438,1777787437000,-500.0,0.00020143,2]
[421510425,1777787437000,-500.0,0.00020143,2]
[421510444,1777787437000,-500.0,0.00020143,2]
[421510454,1777787438000,-500.0,0.00020143,2]
[421510457,1777787438000,-500.0,0.00020143,2]
[421510453,1777787438000,-500.0,0.00020143,2]
[421510447,1777787438000,-500.0,0.00020143,2]
[421510455,1777787438000,-500.0,0.00020143,2]
[421510446,1777787438000,-500.0,0.00020143,2]
[421510450,1777787438000,-500.0,0.00020143,2]
[421510459,1777787438000,-500.0,0.00020143,2]
[421510452,1777787438000,-396.01828324,0.00020143,2]
[421510458,1777787438000,-500.0,0.00020143,2]
[421510449,1777787438000,-500.0,0.00020143,2]
[421510456,1777787438000,-500.0,0.00020143,2]
[421510448,1777787438000,-500.0,0.00020143,2]
[421510463,1777787438000,-500.0,0.00020143,2]
[421510451,1777787438000,-500.0,0.00020143,2]
[421510462,1777787438000,-500.0,0.00020143,2]
[421510460,1777787438000,-500.0,0.00020143,2]
[421510475,1777787438000,-18129.74387373,0.000387,2]
[421510472,1777787438000,-713.71647197,0.000387,2]
[421510474,1777787438000,-896.16431314,0.000387,2]
[421510470,1777787438000,-829.67010334,0.000387,2]
[421510469,1777787438000,-48993.48432967,0.000387,2]
[421510473,1777787438000,-546.35727187,0.000387,2]
[421510468,1777787438000,-10391.57037895,0.000387,2]
[421510466,1777787438000,-226020.60008365,0.000387,2]
[421510465,1777787438000,-500.0,0.00020143,2]
[421510467,1777787438000,-1800.69231806,0.000387,2]
[421510464,1777787438000,-500.0,0.00020143,2]
[421510471,1777787438000,-380.52932165,0.000387,2]
[421510461,1777787438000,-500.0,0.00020143,2]
[421510483,1777787439000,-380.30947352,0.000387,2]
[421510488,1777787440000,-351.18,0.000387,2]
[421510487,1777787440000,-1147.126944,0.000387,2]
[421510486,1777787440000,-1643.75478113,0.000387,2]
[421510485,1777787440000,-3565.18647994,0.000387,2]
[421510484,1777787440000,-4553.25497899,0.000387,2]
[421510501,1777787442000,-756.36239246,0.000387,2]
[421510507,1777787443000,-11502.63998413,0.000387,2]
[421510509,1777787443000,-678.47157198,0.000387,2]
[421510502,1777787443000,-290.0,0.000387,2]
[421510503,1777787443000,-4677.41841094,0.000387,2]
[421510506,1777787443000,-6216.81729838,0.000387,2]
[421510505,1777787443000,-777317.6046827,0.000387,2]
[421510508,1777787443000,-8484.22702363,0.000387,2]
[421510504,1777787443000,-1423.0623945,0.000387,2]
[421510518,1777787446000,-4267.05145358,0.000387,2]
[421510529,1777787446000,-57704.24108967,0.000387,2]
[421510528,1777787446000,-8205.36972608,0.000387,2]
[421510524,1777787446000,-9567.46598948,0.000387,2]
[421510526,1777787446000,-800.00006697,0.000387,2]
[421510523,1777787446000,-8103.11541545,0.000387,2]
[421510525,1777787446000,-3110.30451518,0.000387,2]
[421510519,1777787446000,-257.72629871,0.000387,2]
[421510521,1777787446000,-4504.83531409,0.000387,2]
[421510522,1777787446000,-1261.267356,0.000387,2]
[421510520,1777787446000,-565.6000001,0.000387,2]
[421510527,1777787446000,-514585.48318029,0.000387,2]
[421510563,1777787581000,779.76126692,0.000241,120]
[421510568,1777788631000,-258.24,0.00013,2]
[421510569,1777788631000,-127.13598275,0.00013,2]
[421510599,1777788632000,-408.0,0.00021827,2]
[421510597,1777788632000,-403.0,0.00021811,2]
[421510598,1777788632000,-405.0,0.00021815,2]
[421510600,1777788632000,-162.45035992,0.00021909,2]
[421510602,1777788632000,-151.0,0.00021912,2]
[421510604,1777788632000,-410.0,0.00021914,2]
[421510605,1777788632000,-406.0,0.00021915,2]
[421510608,1777788632000,-400.0,0.00021927,2]
[421510603,1777788632000,-211.26772661,0.00021912,2]
[421510601,1777788632000,-200.0,0.00021912,2]
[421510606,1777788632000,-405.0,0.00021918,2]
[421510607,1777788632000,-403.0,0.00021922,2]
[421510609,1777788632000,-410.0,0.00021935,2]
[421510610,1777788632000,-408.0,0.00021957,2]
[421510612,1777788632000,-399.0,0.00022003,2]
[421510611,1777788632000,-398.0,0.00021976,2]
[421510613,1777788632000,-408.0,0.00022041,2]
[421510618,1777788632000,-202.02219804,0.0002246,2]
[421510619,1777788632000,-1060.0,0.00022562,2]
[421510620,1777788632000,-3532.0,0.00022572,2]
[421510614,1777788632000,-407.0,0.00022094,2]
[421510615,1777788632000,-409.0,0.00022167,2]
[421510616,1777788632000,-412.0,0.00022269,2]
[421510594,1777788632000,-405.0,0.00021809,2]
[421510591,1777788632000,-999.99,0.00021809,2]
[421510595,1777788632000,-407.0,0.00021809,2]
[421510593,1777788632000,-399.0,0.00021809,2]
[421510571,1777788632000,-250.0,0.000143,2]
[421510570,1777788632000,-76.83401725,0.00013,2]
[421510572,1777788632000,-250.0,0.00015495,2]
[421510573,1777788632000,-250.31297905,0.00017784,2]
[421510575,1777788632000,-2500.0,0.00018068,2]
[421510574,1777788632000,-982.0,0.00018067,2]
[421510582,1777788632000,-151.0,0.000192,2]
[421510576,1777788632000,-2500.0,0.00018068,2]
[421510578,1777788632000,-2500.0,0.00018068,2]
[421510580,1777788632000,-250.0,0.00018068,2]
[421510577,1777788632000,-2500.0,0.00018068,2]
[421510579,1777788632000,-2500.0,0.00018068,2]
[421510584,1777788632000,-152.0,0.000192,2]
[421510583,1777788632000,-152.0,0.000192,2]
[421510581,1777788632000,-500.0,0.000192,7]
[421510585,1777788632000,-1229.59,0.00020951,2]
[421510586,1777788632000,-408.0,0.00020951,2]
[421510587,1777788632000,-19999.99,0.00021809,2]
[421510589,1777788632000,-299.99,0.00021809,7]
[421510588,1777788632000,-9999.99,0.00021809,2]
[421510592,1777788632000,-466.7514,0.00021809,2]
[421510590,1777788632000,-3320.29,0.00021809,2]
[421510596,1777788632000,-409.0,0.0002181,2]
[421510617,1777788632000,-402.0,0.00022414,2]
[421510621,1777788632000,-939.953,0.00022572,2]
[421510663,1777788632000,-500.0,0.00038595,15]
[421510623,1777788632000,-405.0,0.00022617,2]
[421510650,1777788632000,-236.47,0.00038179,2]
[421510649,1777788632000,-150.0,0.00038071,7]
[421510654,1777788632000,-500.0,0.00038595,15]
[421510665,1777788632000,-23884.159743,0.00038596,2]
[421510657,1777788632000,-500.0,0.00038595,15]
[421510656,1777788632000,-500.0,0.00038595,15]
[421510658,1777788632000,-500.0,0.00038595,15]
[421510661,1777788632000,-500.0,0.00038595,15]
[421510660,1777788632000,-500.0,0.00038595,15]
[421510659,1777788632000,-500.0,0.00038595,15]
[421510662,1777788632000,-500.0,0.00038595,15]
[421510664,1777788632000,-1192.9553263,0.00038596,2]
[421510622,1777788632000,-6039.0,0.00022572,2]
[421510666,1777788632000,-7334.3487553,0.00038596,2]
[421510667,1777788632000,-3009.517047,0.00038596,2]
[421510668,1777788632000,-332.6586278,0.00038596,2]
[421510670,1777788632000,-220338.2048375,0.000387,2]
[421510671,1777788632000,-5829.41813813,0.000387,2]
[421510669,1777788632000,-28609.1027251,0.00038596,2]
[421510672,1777788632000,-290.80240393,0.00038595,15]
[421510675,1777788632000,-719.62920142,0.000387,2]
[421510673,1777788632000,-209.19759607,0.00038595,15]
[421510674,1777788632000,-479.99903099,0.000387,2]
[421510652,1777788632000,-500.0,0.00038595,15]
[421510651,1777788632000,-150.0,0.00038397,7]
[421510655,1777788632000,-500.0,0.00038595,15]
[421510648,1777788632000,-150.0,0.00038071,7]
[421510625,1777788632000,-1000.0,0.000232,7]
[421510624,1777788632000,-401.0,0.00022904,2]
[421510626,1777788632000,-409.0,0.00023299,2]
[421510633,1777788632000,-1500.0,0.000271,7]
[421510630,1777788632000,-500.0,0.00024899,2]
[421510627,1777788632000,-408.0,0.00023852,2]
[421510629,1777788632000,-500.0,0.00024899,2]
[421510653,1777788632000,-500.0,0.00038595,15]
[421510632,1777788632000,-6033.0,0.00025572,2]
[421510628,1777788632000,-409.0,0.00024624,2]
[421510635,1777788632000,-190.11,0.00030744,2]
[421510634,1777788632000,-190.11,0.00027949,2]
[421510631,1777788632000,-928.0,0.00025572,2]
[421510637,1777788632000,-154.14605141,0.000316,2]
[421510636,1777788632000,-2000.0,0.000311,7]
[421510646,1777788632000,-150.0,0.00038071,7]
[421510645,1777788632000,-258.82852552,0.00038071,7]
[421510644,1777788632000,-150.0,0.00038071,7]
[421510642,1777788632000,-150.0,0.00038071,120]
[421510647,1777788632000,-150.0,0.00038071,7]
[421510638,1777788632000,-154.14605141,0.000316,2]
[421510641,1777788632000,-636.0,0.00038034,30]
[421510639,1777788632000,-1801.12,0.00034712,39]
[421510640,1777788632000,-2000.0,0.000351,7]
[421510643,1777788632000,-150.0,0.00038071,7]
[421510688,1777788638000,-500.0,0.00038595,15]
[421510685,1777788638000,-111.09648881,0.00038595,15]
[421510689,1777788638000,-500.0,0.00038595,15]
[421510686,1777788638000,-500.0,0.00038595,15]
[421510683,1777788638000,-500.0,0.00038595,15]
[421510681,1777788638000,-357.664,0.00038595,15]
[421510684,1777788638000,-388.90351119,0.00038595,15]
[421510680,1777788638000,-142.336,0.00038595,15]
[421510678,1777788638000,-258.6,0.00038595,15]
[421510679,1777788638000,-241.4,0.00038595,15]
[421510682,1777788638000,-500.0,0.00038595,15]
[421510687,1777788638000,-500.0,0.00038595,15]
[421510693,1777788638000,-500.0,0.00038595,15]
[421510691,1777788638000,-500.0,0.00038595,15]
[421510692,1777788638000,-500.0,0.00038595,15]
[421510701,1777788638000,-400.88188653,0.000387,2]
[421510695,1777788638000,-500.0,0.00038595,15]
[421510698,1777788638000,-380.52932165,0.000387,2]
[421510697,1777788638000,-829.67010334,0.000387,2]
[421510700,1777788638000,-380.2142533,0.000387,2]
[421510694,1777788638000,-500.0,0.00038595,15]
[421510699,1777788638000,-548.14977278,0.000387,2]
[421510696,1777788638000,-43882.38784086,0.000387,2]
[421510702,1777788638000,-615.21547425,0.000387,2]
[421510690,1777788638000,-500.0,0.00038595,15]
[421510836,1777788640000,-31326.20168956,0.000387,2]
[421510835,1777788640000,-9870.34272188,0.000387,2]